bitfinex/quotes_ETHUSD_20240910
["timestamp","ask_amount","ask_price","bid_price","bid_amount"]
[1725995420914,0.0262209,2366.1,2366.0,21.76607639]
[1725995421245,0.0262209,2366.1,2366.0,24.01607639]
[1725995421436,0.0262209,2366.1,2366.0,27.01607639]
[1725995425439,9e-07,2366.1,2366.0,27.01607639]
[1725995429222,9e-07,2366.1,2366.0,31.24261639]
[1725995429741,9e-07,2366.1,2366.0,27.01607639]
[1725995430124,9e-07,2366.1,2366.0,31.24261639]
[1725995431877,0.0262209,2366.5,2366.4,19.36288]
[1725995432025,0.0262209,2366.5,2366.4,30.41526054]
[1725995432225,9e-07,2366.5,2366.4,34.64108054]
[1725995432531,0.0262209,2367.0,2366.9,8.44986]
[1725995432754,2.4776209,2367.0,2366.9,4.22493]
[1725995433556,3.0276209,2367.0,2366.9,4.22493]
[1725995434135,0.0262209,2367.0,2366.9,12.47605027]
[1725995434475,0.0262209,2367.0,2366.9,14.15462565]
[1725995435967,0.0262209,2367.0,2366.9,18.37955565]
[1725995436631,0.0262209,2367.0,2366.9,14.15462565]
[1725995437272,0.0262209,2367.0,2366.9,18.37955565]
[1725995437945,7.49,2367.8,2367.7,8.447]
[1725995438267,7.49,2367.8,2367.1,4.22445]
[1725995438268,2.4529,2367.9,2367.6,4.22364]
[1725995438425,2.4529,2367.9,2367.5,4.22373]
[1725995438773,2.4529,2367.9,2367.6,8.24976027]
[1725995439234,2.4529,2367.9,2367.7,4.30795754]
[1725995439434,2.4529,2367.9,2367.8,8.24951027]
[1725995439923,2.4529,2367.9,2367.7,4.22338]
[1725995440229,2.4529,2367.9,2367.6,0.08447011]
[1725995440424,2.4529,2367.9,2367.7,4.22341]
[1725995440742,2.4529,2367.9,2367.8,4.22332]
[1725995440928,2.4529,2367.9,2367.8,8.24951027]
[1725995440929,3.0029,2367.9,2367.8,8.24951027]
[1725995441124,2.4357031,2368.2,2368.1,4.22279]
[1725995441326,2.9857031,2368.2,2368.1,4.22279]
[1725995441630,2.4357031,2368.2,2368.1,4.22279]
[1725995442166,2.4357031,2368.2,2368.1,8.44558]
[1725995442324,0.0114031,2368.2,2368.1,9.77722551]
[1725995443869,0.0114031,2368.2,2368.1,14.00001551]
[1725995444555,0.0114031,2368.2,2368.1,9.77722551]
[1725995446892,0.0114031,2368.2,2368.1,14.00001551]
[1725995447448,0.0114031,2368.2,2368.1,9.77722551]
[1725995448284,0.0114031,2368.2,2368.1,14.00001551]
[1725995448985,0.0114031,2368.2,2368.1,9.77722551]
[1725995449398,0.0114031,2368.2,2368.1,9.69277503]
[1725995449692,0.0114031,2368.2,2368.1,4.22279]
[1725995450050,0.5614031,2368.2,2368.0,4.22295]
[1725995450288,2.254,2368.1,2367.8,4.22328]
[1725995450486,2.254,2368.1,2367.9,4.22306]
[1725995450487,0.55,2368.0,2367.9,4.22306]
[1725995451595,0.55,2368.0,2367.5,4.22376]
[1725995451776,2.254,2367.9,2367.6,4.22359]
[1725995451954,0.55,2367.8,2367.6,4.22359]
[1725995452289,0.55,2367.8,2367.5,4.22382]
[1725995453150,0.55,2367.8,2367.6,4.22365]
[1725995454306,0.55,2367.8,2367.7,8.447]
[1725995454523,0.55,2367.8,2367.7,8.53146031]
[1725995458211,0.55,2367.8,2367.5,4.22371]
[1725995458380,0.55,2367.8,2367.4,4.22391]
[1725995458585,0.55,2367.8,2367.6,4.2236]
[1725995460711,0.55,2367.8,2367.6,4.22368]
[1725995462203,0.55,2367.8,2367.7,4.2235]
[1725995462803,0.55,2367.8,2367.7,5.07668177]
[1725995462987,0.55,2367.8,2367.7,9.30018177]
[1725995463195,2.4832031,2368.2,2368.1,4.22279]
[1725995463414,0.0114031,2368.2,2368.1,4.22279]
[1725995463712,0.0114031,2368.2,2368.1,8.53002902]
[1725995463920,0.0114031,2368.2,2368.1,9.78565095]
[1725995468020,0.0114031,2368.2,2368.1,14.00844095]
[1725995469390,0.0114031,2368.2,2368.1,21.05489276]
[1725995470788,0.0114031,2368.2,2368.1,16.83210276]
[1725995470991,0.0114031,2368.2,2368.1,14.43300276]
[1725995472648,0.0114031,2368.2,2368.1,14.43299941]
[1725995472995,0.0114031,2368.2,2368.1,21.04658941]
[1725995473729,3.1e-06,2368.2,2368.1,25.26937941]
[1725995475053,3.1e-06,2368.2,2368.1,18.57134039]
[1725995475353,3.1e-06,2368.2,2368.1,22.59753066]
[1725995476202,3.1e-06,2368.2,2368.1,22.1729722]
[1725995478151,3.1e-06,2368.2,2368.1,22.59751084]
[1725995479758,3.1e-06,2368.2,2368.1,18.37472084]
[1725995479940,3.1e-06,2368.2,2368.1,22.59751084]
[1725995480156,3.1e-06,2368.2,2368.1,18.37472084]
[1725995480674,3.1e-06,2368.2,2368.1,22.59751084]
[1725995483343,7.3700031,2368.8,2368.7,8.44344]
[1725995483571,2.3215998,2368.9,2368.8,8.44308]
[1725995483792,2.8715998,2368.9,2368.8,8.44308]
[1725995484544,2.8715998,2368.9,2368.8,9.80244301]
[1725995484545,2.3215998,2368.9,2368.8,9.80244301]
[1725995484861,2.3215998,2368.9,2368.8,13.93955663]
[1725995486673,2.3215998,2368.9,2368.8,8.44308]
[1725995486849,2.8715998,2368.9,2368.8,8.44308]
[1725995488192,2.8715998,2368.9,2368.8,8.44216864]
[1725995491131,2.8715998,2368.9,2368.8,12.66370864]
[1725995493004,2.3894,2369.5,2369.4,8.44094]
[1725995493350,7.5310998,2369.7,2369.6,12.66036]
[1725995493351,2.4304998,2369.7,2369.6,12.66036]
[1725995493500,0.0410998,2369.7,2369.6,12.66036]
[1725995493697,0.0410998,2369.7,2369.6,16.68655027]
[1725995493941,0.0410998,2369.7,2369.6,14.83545643]
[1725995494249,0.0410998,2369.7,2369.6,10.61533643]
[1725995494549,2.4304998,2369.7,2369.6,4.22012]
[1725995495067,2.4304998,2369.7,2369.6,8.44024]
[1725995495458,2.4304998,2369.7,2369.6,4.22012]
[1725995495895,2.4304998,2369.7,2369.6,8.44024]
[1725995496741,2.9804998,2369.7,2369.6,8.44024]
[1725995496943,2.9804998,2369.7,2369.5,4.22028]
[1725995497131,0.6555075,2369.6,2369.5,4.22028]
[1725995497440,0.6555075,2369.6,2369.5,8.44057]
[1725995497622,0.55,2369.6,2369.5,8.44057]
[1725995501054,0.0478128,2369.6,2369.5,8.44057]
[1725995501342,0.5978128,2369.6,2369.5,8.44057]
[1725995502448,2.4433,2369.5,2369.2,4.22068]
[1725995502691,2.4433,2369.5,2368.6,4.02619027]
[1725995502692,2.4433,2369.3,2369.1,4.22092]
[1725995502987,0.65552606,2369.2,2369.1,8.44193]
[1725995503186,0.55,2369.2,2369.1,8.44193]
[1725995503759,0.5662214,2369.2,2369.1,8.44193]
[1725995505194,0.0162214,2369.2,2369.1,13.929269]
[1725995509489,0.0162214,2369.2,2369.1,18.150279]
[1725995510873,0.0162214,2369.2,2369.1,13.929269]
[1725995513674,0.0162214,2369.2,2369.1,18.150279]
[1725995514116,1.4e-06,2369.2,2369.1,22.371289]
[1725995514321,1.4e-06,2369.2,2369.1,25.65087134]
[1725995514685,1.4e-06,2369.2,2369.1,27.33684595]
[1725995514891,1.4e-06,2369.2,2369.1,31.21622959]
[1725995516313,1.4e-06,2369.2,2369.1,30.74167635]
[1725995516508,1.4e-06,2369.2,2369.1,31.21625707]
[1725995517204,1.4e-06,2369.2,2369.1,30.33687343]
[1725995517965,1.4e-06,2369.2,2369.1,28.65087134]
[1725995518171,1.4e-06,2369.2,2369.1,29.86194565]
[1725995518459,1.4e-06,2369.2,2369.1,29.12548963]
[1725995518834,1.4e-06,2369.2,2369.1,29.12527157]
[1725995519030,1.4e-06,2369.2,2369.1,30.33628457]
[1725995519234,1.4e-06,2369.2,2369.1,29.86166628]
[1725995519762,1.4e-06,2369.2,2369.1,28.65065328]
[1725995520525,1.4e-06,2369.2,2369.1,29.86139608]
[1725995520956,0.0315914,2370.0,2369.9,12.65874]
[1725995521327,0.0315914,2370.0,2369.9,8.43916]
[1725995521523,0.0315914,2370.0,2369.9,4.21958]
[1725995521524,2.5194914,2370.0,2369.9,4.21958]
[1725995521720,6.95332967,2370.0,2369.6,4.21999]
[1725995521960,2.4364,2369.8,2369.6,4.21999]
[1725995522461,0.55,2369.7,2369.6,4.21999]
[1725995522664,2.4364,2369.6,2369.5,4.22021]
[1725995522893,2.9864,2369.6,2369.3,4.22047]
[1725995523051,2.9864,2369.6,2369.1,4.22087]
[1725995523052,0.65551563,2369.5,2369.1,4.22087]
[1725995523383,2.4859,2369.4,2369.0,4.22112]
[1725995523535,0.10552569,2369.3,2369.1,4.22093]
[1725995523734,2.4859,2369.1,2369.0,4.22109]
[1725995523941,3.0359,2369.1,2369.0,4.22109]
[1725995524579,0.55,2369.1,2369.0,9.29495676]
[1725995524742,2.4859,2369.4,2369.3,4.22059]
[1725995525086,2.4859,2369.4,2369.3,8.44111]
[1725995525087,3.0359,2369.4,2369.3,8.44111]
[1725995525330,3.0359,2369.4,2369.3,4.22052]
[1725995526101,3.0359,2369.4,2369.3,8.44117]
[1725995526315,3.0359,2369.4,2369.3,4.22052]
[1725995527710,3.0359,2369.4,2369.0,0.08441231]
[1725995527711,3.91973827,2369.4,2369.0,4.22118]
[1725995527908,2.95132564,2369.3,2369.0,4.22118]
[1725995528081,0.10552564,2369.2,2369.0,4.22118]
[1725995528281,0.55,2369.1,2369.0,4.22118]
[1725995528717,0.55,2369.1,2369.0,9.286616]
[1725995528920,2.2958,2369.3,2369.1,4.22091]
[1725995528921,0.55,2369.2,2369.1,4.22091]
[1725995530323,0.55,2369.2,2369.0,9.286516]
[1725995530933,0.55,2369.2,2369.1,4.22101]
[1725995531224,0.55,2369.2,2369.0,4.22103]
[1725995531435,0.55,2369.2,2369.1,4.22101]
[1725995531638,3.17933969,2369.3,2369.1,4.22101]
[1725995531936,2.2958,2369.3,2369.2,4.22083]
[1725995532086,0.88353969,2369.4,2369.3,8.4413]
[1725995532293,0.88353969,2369.6,2369.5,8.44058]
[1725995532592,3.33473969,2369.7,2369.6,4.22012]
[1725995532909,3.33510297,2369.7,2369.6,4.22012]
[1725995533785,3.88510297,2369.7,2369.6,4.22012]
[1725995534033,1.3257574,2369.8,2369.6,5.27405465]
[1725995534034,0.88390297,2369.8,2369.6,5.27405465]
[1725995534339,0.88390297,2369.8,2369.7,4.21994]
[1725995534926,0.88390297,2369.8,2369.7,8.52423102]
[1725995535133,0.88390297,2369.9,2369.8,4.21976]
[1725995535340,4.3573488,2370.0,2369.8,4.21976]
[1725995535634,1.3257574,2369.9,2369.8,4.21976]
[1725995535801,1.8757574,2369.9,2369.8,4.21976]
[1725995536387,1.8757574,2369.9,2369.6,0.96955259]
[1725995536388,1.8757574,2369.9,2369.6,4.22011]
[1725995536603,1.8757574,2369.9,2369.7,4.21994]
[1725995536604,1.8757574,2369.8,2369.7,4.21994]
[1725995537455,1.43445627,2369.8,2369.7,5.18945659]
[1725995537604,1.8757574,2369.8,2369.7,5.18945659]
[1725995537805,0.55,2369.8,2369.7,5.18945659]
[1725995538005,0.55,2369.8,2369.7,4.21994]
[1725995538203,1.8757574,2369.8,2369.7,4.21994]
[1725995539508,0.55,2369.8,2369.7,4.21994]
[1725995540146,1.8757574,2369.8,2369.7,4.21994]
[1725995541840,3.62614707,2369.8,2369.4,4.22032]
[1725995542041,0.88462305,2369.6,2369.4,4.22032]
[1725995542227,1.43462305,2369.5,2369.3,4.22051]
[1725995542430,0.88462305,2369.4,2369.3,4.22051]
[1725995542637,1.43462305,2369.4,2369.3,4.22051]
[1725995543325,0.55,2369.4,2369.3,4.22051]
[1725995543706,1.43462305,2369.4,2369.3,4.22051]
[1725995543931,0.55,2369.4,2369.3,4.22051]
[1725995544154,1.43462305,2369.4,2369.3,4.22051]
[1725995545378,2.2524,2369.3,2369.0,4.22108]
[1725995545578,0.55,2369.2,2369.0,4.22108]
[1725995546062,1.43462305,2369.2,2369.1,4.22094]
[1725995546627,1.43462305,2369.2,2368.8,0.08442012]
[1725995546832,2.2524,2368.7,2368.2,4.22251]
[1725995547061,0.65555755,2368.6,2368.1,4.22266]
[1725995547270,0.88420254,2368.5,2368.2,4.22261]
[1725995547470,0.88420254,2368.5,2367.8,2.4532914]
[1725995547471,2.2524,2368.3,2367.9,4.22306]
[1725995547842,0.65557114,2368.2,2367.8,4.2548314]
[1725995548046,0.65557114,2368.2,2367.8,4.2548214]
[1725995548577,0.65557114,2368.2,2367.8,8.4780314]
[1725995548740,0.65557114,2368.2,2367.9,4.22311]
[1725995549349,0.55,2368.2,2368.0,4.22296]
[1725995550536,6.13660254,2368.6,2368.1,4.22279]
[1725995550764,0.55,2368.5,2368.2,4.22259]
[1725995550978,0.55,2368.5,2368.1,4.22275]
[1725995551681,0.55,2368.5,2368.2,4.2226]
[1725995551851,0.55,2368.5,2368.1,0.88711651]
[1725995552053,0.10556181,2368.4,2368.0,8.87112514]
[1725995552382,0.55,2368.3,2368.0,4.64825514]
[1725995552549,0.55,2368.3,2368.0,4.2228]
[1725995552952,0.55,2368.3,2368.0,8.44567]
[1725995553151,0.55,2368.3,2368.1,4.22277]
[1725995553950,3.0,2368.5,2368.1,4.22277]
[1725995553951,0.55,2368.4,2368.1,4.22277]
[1725995554840,0.65556387,2368.4,2368.0,4.2228]
[1725995555147,2.33,2368.3,2367.8,4.2547814]
[1725995555339,0.65557458,2368.2,2367.8,4.2547814]
[1725995556280,0.65557458,2368.2,2368.1,4.22279]
[1725995556281,0.55,2368.2,2368.1,4.22279]
[1725995556610,0.55,2368.2,2368.0,8.44582]
[1725995556899,4.87783629,2368.4,2368.0,4.22288]
[1725995557253,3.0,2368.3,2368.0,4.22288]
[1725995557459,0.65557322,2368.2,2368.0,4.22288]
[1725995559659,3.07067322,2368.2,2367.8,4.2547814]
[1725995559996,3.07067322,2368.2,2367.9,4.22312]
[1725995561506,3.07067322,2368.2,2367.9,4.2377662]
[1725995563026,3.07067322,2368.2,2367.9,0.0146462]
[1725995563316,10.88374,2368.0,2367.9,0.0146462]
[1725995563500,11.43374,2368.0,2367.9,0.0146462]
[1725995563675,14.43374,2368.0,2367.9,0.0146462]
[1725995565221,10.21077,2368.0,2367.9,0.0146462]
[1725995570516,14.43374,2368.0,2367.9,0.0146462]
[1725995570840,18.65671,2368.0,2367.9,0.0146462]
[1725995571195,18.65671,2368.0,2367.6,0.0259538]
[1725995571196,12.6705,2367.7,2367.6,0.0259538]
[1725995571395,22.03179027,2367.7,2367.6,0.0259538]
[1725995571642,22.58179027,2367.7,2367.6,0.0259538]
[1725995572490,18.35829027,2367.7,2367.6,0.0259538]
[1725995572690,10.1086,2367.7,2367.6,0.0259538]
[1725995574221,5.8851,2367.7,2367.6,0.0259538]
[1725995574428,5.99070233,2367.7,2367.6,0.0259538]
[1725995575414,10.21420233,2367.7,2367.6,0.0259538]
[1725995576238,14.43770233,2367.7,2367.6,0.0259538]
[1725995576536,22.6873926,2367.7,2367.6,0.0259538]
[1725995580516,13.88770233,2367.7,2367.6,0.0259538]
[1725995581201,17.9138926,2367.7,2367.6,0.0259538]
[1725995581921,14.43770233,2367.7,2367.6,0.0259538]
[1725995582813,18.4638926,2367.7,2367.6,0.0259538]
[1725995583382,14.43770233,2367.7,2367.6,0.0259538]
[1725995583657,4.32910233,2367.7,2367.6,0.0259538]
[1725995584013,0.10560549,2367.8,2367.6,0.0259538]
[1725995584213,0.10560549,2367.8,2367.6,0.45093418]
[1725995584654,4.22315,2367.9,2367.6,0.45093418]
[1725995584655,0.10559581,2367.9,2367.6,0.45093418]
[1725995585536,7.32874581,2367.9,2367.6,0.45093418]
[1725995585861,4.2235,2367.7,2367.6,0.0259538]
[1725995586018,7.32910719,2367.7,2367.6,0.0259538]
[1725995586353,3.65560719,2367.7,2367.6,0.0259538]
[1725995586962,0.55,2367.7,2367.6,0.0259538]
[1725995587134,0.65559727,2367.7,2367.6,0.0259538]
[1725995587321,0.10559727,2367.7,2367.6,0.0259538]
[1725995587672,0.65559727,2367.7,2367.6,0.0259538]
[1725995587968,3.65559727,2367.7,2367.6,0.0259538]
[1725995588315,0.65559727,2367.7,2367.6,0.0259538]
[1725995589982,0.55,2367.7,2367.6,4.2496338]
[1725995590278,3.0,2368.0,2367.7,4.2235]
[1725995590575,5.1016097,2368.2,2367.7,4.2235]
[1725995590576,0.98449406,2368.1,2367.8,4.22322]
[1725995590726,3.98449406,2368.1,2367.8,4.22322]
[1725995591173,0.98449406,2368.1,2367.8,4.22322]
[1725995591521,0.8789097,2368.0,2367.8,4.22322]
[1725995591822,0.8789097,2368.0,2367.7,8.44691]
[1725995592048,0.55,2367.9,2367.7,4.97319022]
[1725995592560,0.55,2367.9,2367.8,4.22332]
[1725995593524,0.8789097,2368.1,2367.9,4.22315]
[1725995593765,0.8789097,2368.1,2367.9,5.56511602]
[1725995593969,0.8789097,2368.2,2367.9,5.56511602]
[1725995594170,0.8789097,2368.2,2368.1,4.22279]
[1725995594379,0.8789097,2368.3,2368.1,4.22279]
[1725995595424,0.8789097,2368.3,2368.0,6.50946]
[1725995595425,0.10556566,2368.2,2368.0,2.2865]
[1725995595631,0.98447536,2368.2,2367.8,4.22332]
[1725995595925,0.98447536,2368.2,2367.8,4.22324]
[1725995595926,0.55,2368.1,2367.8,4.22324]
[1725995596156,3.55,2368.1,2367.9,4.30743362]
[1725995596359,0.55,2368.1,2367.8,4.22332]
[1725995596529,1.4289097,2368.1,2367.8,4.22332]
[1725995596737,0.10557911,2368.0,2367.8,4.22332]
[1725995597078,0.55,2367.9,2367.8,4.22332]
[1725995597272,0.55,2368.0,2367.8,4.22332]
[1725995599026,0.55,2368.0,2367.6,0.0259538]
[1725995599027,4.2235,2367.7,2367.6,0.0259538]
[1725995599293,19.25663466,2367.7,2367.6,0.0259538]
[1725995599579,19.86396128,2367.7,2367.6,0.0259538]
[1725995600492,28.31055827,2367.7,2367.6,3.8e-06]
[1725995600777,28.31055827,2367.7,2366.7,0.0259538]
[1725995600778,10.7479,2367.2,2366.7,0.0259538]
[1725995601076,21.83597474,2367.2,2366.7,0.0259538]
[1725995601230,13.58538447,2367.2,2366.7,0.0259538]
[1725995601531,17.36870655,2367.2,2366.7,0.0259538]
[1725995601923,13.14430655,2367.2,2366.7,0.0259538]
[1725995602356,17.36870655,2367.2,2366.7,0.0259538]
[1725995604147,17.80978447,2367.2,2366.7,0.0259538]
[1725995604353,15.60533466,2367.2,2366.7,0.0259538]
[1725995604536,19.82973466,2367.2,2366.7,0.0259538]
[1725995604745,21.46285931,2367.2,2366.7,0.0259538]
[1725995605070,21.46289605,2367.2,2366.7,0.0259538]
[1725995605271,19.82973466,2367.2,2366.7,0.0259538]
[1725995605479,21.46261334,2367.2,2366.7,0.0259538]
[1725995605624,28.33239141,2367.2,2366.7,0.0259538]
[1725995605833,20.02163498,2366.8,2366.7,3.8e-06]
[1725995606077,25.60570436,2366.8,2366.7,3.8e-06]
[1725995606274,26.51194832,2366.8,2366.7,3.8e-06]
[1725995606567,29.15271375,2366.8,2366.7,3.8e-06]
[1725995607040,27.08094609,2366.8,2366.7,3.8e-06]
[1725995611062,22.41351002,2366.8,2366.7,3.8e-06]
[1725995611237,15.70835466,2366.8,2366.7,3.8e-06]
[1725995611438,15.72026993,2366.8,2366.7,3.8e-06]
[1725995611633,15.72028697,2366.8,2366.7,3.8e-06]
[1725995611873,5.54447697,2366.8,2366.7,3.8e-06]
[1725995612033,4.33075736,2366.8,2366.7,3.8e-06]
[1725995613507,0.87971142,2367.0,2366.7,3.8e-06]
[1725995613707,0.9853413,2367.2,2366.7,3.8e-06]
[1725995614003,3.015535,2367.4,2367.0,6.58825]
[1725995614201,2.03020741,2367.4,2367.1,0.658825]
[1725995614361,2.90991883,2367.4,2367.2,4.22438]
[1725995614560,0.98532173,2367.5,2367.1,4.883375]
[1725995615093,0.98532173,2367.5,2367.2,4.22437]
[1725995615297,0.98532085,2367.6,2367.2,0.53791997]
[1725995615496,0.98532085,2367.6,2367.2,4.76227997]
[1725995615973,5.20903085,2367.6,2367.2,0.53791997]
[1725995616173,5.20903085,2367.6,2367.0,2.3636]
[1725995616174,5.10368142,2367.5,2367.0,2.3636]
[1725995616359,4.32967134,2367.4,2367.0,2.3636]
[1725995616792,4.32967134,2367.4,2366.8,4.22498]
[1725995617108,4.7743,2367.3,2366.8,4.22498]
[1725995617310,0.10561624,2367.2,2366.9,4.22492]
[1725995617459,0.55,2367.1,2366.9,4.22492]
[1725995617800,0.55,2367.1,2366.8,0.0844952]
[1725995617801,0.55,2367.1,2366.8,4.22501]
[1725995619412,0.55,2367.1,2366.8,5.311752]
[1725995620427,0.55,2367.1,2366.8,4.22501]
[1725995621526,0.55,2367.1,2366.8,4.22508]
[1725995622736,3.10562391,2367.3,2367.0,4.22475]
[1725995622737,0.55,2367.2,2367.0,4.22475]
[1725995623538,0.55,2367.3,2367.0,4.22475]
[1725995623824,0.55,2367.3,2367.1,4.22456]
[1725995624033,0.55,2367.4,2367.1,4.22456]
[1725995624390,0.55,2367.4,2367.1,4.22448]
[1725995625283,0.55,2367.4,2367.2,4.22439]
[1725995625725,0.55,2367.4,2367.1,4.22448]
[1725995626887,0.55,2367.4,2367.2,4.22429]
[1725995627191,1.75955038,2367.8,2367.2,4.22429]
[1725995627192,8.38617672,2367.9,2367.5,4.22386]
[1725995627396,0.89617672,2367.9,2367.5,4.22386]
[1725995627936,5.10306142,2367.8,2367.3,4.22419]
[1725995628227,4.22449,2367.2,2366.7,4.22517]
[1725995628385,0.65562661,2367.1,2366.7,4.22517]
[1725995629418,0.65562661,2367.1,2366.8,4.22509]
[1725995629615,0.55,2367.1,2366.8,4.22509]
[1725995630134,4.33045367,2367.0,2366.5,4.2357148]
[1725995630427,3.55,2366.9,2366.6,4.22544]
[1725995630631,3.55,2366.9,2366.7,4.22529]
[1725995630804,0.55,2366.9,2366.7,4.22529]
[1725995632642,0.55,2366.9,2366.8,4.22511]
[1725995632933,0.55,2366.9,2366.8,6.50181]
[1725995633301,0.55,2367.0,2366.8,6.50181]
[1725995633518,0.55,2367.0,2366.9,4.22493]
[1725995633801,3.10562446,2367.2,2366.9,4.22493]
[1725995633802,0.55,2367.1,2366.9,4.22493]
[1725995634023,3.98533184,2367.3,2367.0,4.22458]
[1725995634332,3.0,2367.2,2367.0,4.22458]
[1725995634536,0.10562042,2367.3,2367.0,4.22458]
[1725995634719,0.98533184,2367.3,2367.0,4.22458]
[1725995635537,0.55,2367.2,2367.0,4.22458]
[1725995635692,0.55,2367.2,2366.8,8.44997]
[1725995636035,0.10562358,2367.1,2366.9,4.22493]
[1725995636190,0.55,2367.0,2366.9,4.22493]
[1725995637307,0.55,2367.0,2366.8,4.22495]
[1725995637842,0.55,2367.0,2366.8,8.44991]
[1725995638200,0.55,2367.0,2366.7,4.22519]
[1725995638762,0.10563254,2366.9,2366.7,4.22519]
[1725995638963,0.55,2366.8,2366.7,4.22519]
[1725995639363,0.55,2366.9,2366.7,4.22519]
[1725995640705,0.55,2367.0,2366.8,4.22497]
[1725995640858,0.55,2367.0,2366.8,8.44998]
[1725995641273,0.55,2367.0,2366.8,4.22497]
[1725995642461,0.55,2367.0,2366.8,0.845031]
[1725995642694,0.55,2367.0,2366.9,4.22493]
[1725995643029,2.9999,2367.1,2366.5,4.2357448]
[1725995643309,2.9999,2367.1,2366.5,0.0102248]
[1725995643310,2.4499,2366.6,2366.5,0.0102248]
[1725995643615,16.89365547,2366.6,2366.5,0.0102248]
[1725995643903,22.0781432,2366.6,2366.5,0.0102248]
[1725995644100,22.08211463,2366.6,2366.5,0.0102248]
[1725995644258,19.87841627,2366.6,2366.5,0.0102248]
[1725995644603,15.86062781,2366.6,2366.5,0.0102248]
[1725995644965,18.06529014,2366.6,2366.5,0.0102248]
[1725995646961,1.32257117,2366.6,2366.5,0.0102248]
[1725995647205,0.88178434,2366.7,2366.5,0.67395228]
[1725995647412,1.4282096,2366.8,2366.5,0.0102248]
[1725995647413,0.88178434,2366.6,2366.5,0.0102248]
[1725995647699,0.88178434,2366.7,2366.5,0.0102248]
[1725995647907,7.83454117,2366.6,2366.5,0.0102248]
[1725995648059,1.42822876,2366.6,2366.5,0.0102248]
[1725995648510,4.42816895,2366.6,2366.5,0.0102248]
[1725995648906,4.97816895,2366.6,2366.5,0.0102248]
[1725995649273,9.20363895,2366.6,2366.5,0.0102248]
[1725995649473,10.94865621,2366.6,2366.5,0.0102248]
[1725995649779,4.32237849,2366.6,2366.5,4.2358648]
[1725995649988,0.88169485,2366.8,2366.5,4.76946907]
[1725995650186,0.88169485,2366.9,2366.7,4.22529]
[1725995650400,0.88169485,2366.9,2366.7,9.77260891]
[1725995650618,0.88169485,2366.9,2366.7,5.54731891]
[1725995651443,0.88169485,2367.0,2366.8,4.22511]
[1725995651618,0.88169485,2367.0,2366.8,5.21080174]
[1725995651927,3.06429174,2367.2,2367.0,4.22475]
[1725995651928,0.88169485,2367.2,2367.0,4.22475]
[1725995652294,0.88169485,2367.1,2367.0,4.22475]
[1725995652495,0.88169485,2367.1,2367.0,5.39867717]
[1725995652932,0.88169485,2367.1,2366.5,4.2357148]
[1725995653145,5.10712375,2366.8,2366.5,0.0102248]
[1725995653377,0.88191375,2366.6,2366.5,0.0102248]
[1725995653547,1.32287062,2366.6,2366.5,0.0102248]
[1725995653864,1.87287062,2366.6,2366.5,0.0102248]
[1725995654064,0.55,2366.6,2366.5,0.0102248]
[1725995654279,1.87287062,2366.6,2366.5,0.0102248]
[1725995654657,0.55,2366.6,2366.5,0.0102248]
[1725995654845,1.43201942,2366.6,2366.5,0.0102248]
[1725995655047,1.87287062,2366.6,2366.5,0.0102248]
[1725995656073,0.55,2366.6,2366.5,0.0102248]
[1725995656231,1.87287062,2366.6,2366.5,0.0102248]
[1725995657676,1.87287062,2366.6,2366.5,4.2358648]
[1725995657873,1.43244477,2366.6,2366.5,0.0102248]
[1725995658367,0.55,2366.6,2366.5,0.0102248]
[1725995658570,1.87287062,2366.6,2366.5,0.0102248]
[1725995659047,1.43242051,2366.6,2366.5,0.0102248]
[1725995659864,1.43240028,2366.6,2366.5,0.0102248]
[1725995660633,1.43237068,2366.6,2366.5,0.0102248]
[1725995661793,1.43237068,2366.6,2366.5,4.2358648]
[1725995661948,1.87287062,2366.6,2366.5,4.2358648]
[1725995662147,0.55,2366.6,2366.5,4.2358648]
[1725995662394,1.87287062,2366.6,2366.5,4.2358648]
[1725995662810,1.87287062,2366.6,2366.5,8.4615048]
[1725995662982,1.43262637,2366.6,2366.5,8.4615048]
[1725995663304,0.88262637,2366.6,2366.5,11.67745528]
[1725995663474,0.88262637,2366.7,2366.6,8.45094]
[1725995664366,1.32287062,2366.8,2366.7,4.22529]
[1725995664556,1.87287062,2366.8,2366.7,4.22529]
[1725995664977,1.87287062,2366.8,2366.7,5.39298353]
[1725995665484,1.85199679,2366.8,2366.7,5.39298353]
[1725995665680,1.87376223,2366.8,2366.7,5.39298353]
[1725995666059,1.87376223,2366.8,2366.7,4.22529]
[1725995666261,1.8519759,2366.8,2366.5,0.0102248]
[1725995666461,0.88235649,2366.6,2366.5,4.2357648]
[1725995666669,1.32367861,2366.6,2366.5,4.2357648]
[1725995666884,1.87367861,2366.6,2366.5,4.2357648]
[1725995667088,0.55,2366.6,2366.5,4.2357648]
[1725995667289,1.87367861,2366.6,2366.5,4.2357648]
[1725995668700,2.31337746,2366.6,2366.5,0.0102248]
[1725995669126,3.61504333,2366.6,2366.5,0.0102248]
[1725995671125,1.85166587,2366.6,2366.5,0.0102248]
[1725995671328,1.87383213,2366.6,2366.5,4.2358648]
[1725995672019,0.55,2366.6,2366.5,4.2358648]
[1725995672547,1.87383213,2366.6,2366.5,4.2358648]
[1725995673042,0.55,2366.6,2366.5,4.2358648]
[1725995673223,1.87383213,2366.6,2366.5,4.2358648]
[1725995674038,1.32383213,2366.6,2366.5,9.40062484]
[1725995674339,0.88313975,2366.7,2366.6,4.22547]
[1725995674543,0.88313975,2366.7,2366.6,8.45094]
[1725995674706,0.88313975,2366.7,2366.6,9.62003848]
[1725995678108,0.88313975,2366.8,2366.7,8.45058]
[1725995678332,1.87383213,2366.8,2366.7,4.22529]
[1725995680956,1.87383213,2366.8,2366.7,9.4983111]
[1725995681107,0.88342389,2366.8,2366.7,9.4983111]
[1725995683213,0.88342389,2366.8,2366.7,8.45058]
[1725995683408,1.76337746,2367.0,2366.8,4.22511]
[1725995683635,3.06682484,2367.0,2366.8,4.22511]
[1725995684115,1.76337746,2366.9,2366.8,4.22511]
[1725995684313,1.76337746,2366.9,2366.7,4.22525]
[1725995684314,2.41900389,2366.9,2366.7,4.22525]
[1725995684631,1.85341395,2366.8,2366.7,4.22525]
[1725995685036,1.87518247,2366.8,2366.7,4.22525]
[1725995686718,3.61686548,2366.8,2366.7,4.22525]
[1725995686913,1.85348802,2366.8,2366.7,4.22525]